bitfinex-derivatives/quotes_SOLF0:USTF0_20241218
["timestamp","ask_amount","ask_price","bid_price","bid_amount"]
[1734539496410,4.7096,216.54,216.51,2.3098]
[1734539496711,2.4,216.54,216.44,18.00862115]
[1734539497007,2.3098,216.53,216.44,18.00862115]
[1734539497212,2.4,216.54,216.48,2.3102]
[1734539497612,2.3098,216.52,216.48,2.3102]
[1734539497907,2.4,216.54,216.4,23.5330399]
[1734539498109,2.31,216.51,216.42,11.27584277]
[1734539498309,2.4,216.54,216.42,11.27584277]
[1734539498612,2.4,216.54,216.47,2.3103]
[1734539498613,2.3099,216.51,216.47,2.3103]
[1734539499005,2.4,216.54,216.42,11.27584277]
[1734539499215,2.4,216.54,216.45,2.3104]
[1734539499510,2.4,216.54,216.42,11.27584277]
[1734539499711,2.3099,216.52,216.47,2.3102]
[1734539499904,2.3099,216.52,216.42,11.27584277]
[1734539500310,2.3099,216.52,216.45,2.3105]
[1734539500513,2.3099,216.52,216.42,11.27584277]
[1734539501814,2.4,216.53,216.42,11.27584277]
[1734539502013,2.4,216.53,216.47,2.3103]
[1734539502014,2.3099,216.51,216.47,2.3103]
[1734539502405,4.7099,216.51,216.44,2.3106]
[1734539502609,4.7099,216.51,216.42,11.27584277]
[1734539503111,2.3096,216.54,216.5,2.31]
[1734539503312,11.27584277,216.59,216.45,11.27584277]
[1734539503313,2.4,216.53,216.45,11.27584277]
[1734539503721,4.7097,216.53,216.5,2.31]
[1734539503914,2.4,216.53,216.45,11.27584277]
[1734539504314,4.7097,216.53,216.47,2.3103]
[1734539504503,4.7097,216.53,216.45,11.27584277]
[1734539505007,2.3098,216.52,216.45,11.27584277]
[1734539505413,2.4,216.53,216.42,11.27584277]
[1734539505606,2.31,216.5,216.46,2.3103]
[1734539506313,2.31,216.5,216.47,2.3103]
[1734539507411,2.4,216.53,216.42,11.27584277]
[1734539507611,13.67584277,216.53,216.39,11.27584277]
[1734539507913,4.4636,216.52,216.39,11.27584277]
[1734539508119,2.3105,216.46,216.39,11.27584277]
[1734539508508,2.31,216.51,216.47,2.3103]
[1734539508707,4.4636,216.52,216.47,2.3103]
[1734539508915,2.4,216.51,216.42,11.27584277]
[1734539509814,2.4,216.51,216.39,11.27584277]
[1734539510212,2.4,216.51,216.35,2.4]
[1734539510213,11.27584277,216.5,216.37,5.41114996]
[1734539510415,11.27584277,216.5,216.4,2.311]
[1734539510710,11.27584277,216.5,216.36,11.27584277]
[1734539510913,2.3104,216.46,216.39,2.3111]
[1734539511113,2.4,216.45,216.36,11.27584277]
[1734539511413,2.4,216.44,216.36,11.27584277]
[1734539512118,4.7107,216.44,216.36,11.27584277]
[1734539513419,4.7107,216.44,216.38,2.3112]
[1734539513618,2.4,216.44,216.36,11.27584277]
[1734539514124,2.4,216.44,216.38,2.3112]
[1734539514821,13.67584277,216.44,216.3,11.27584277]
[1734539515020,3.0112,216.43,216.3,11.27584277]
[1734539515228,11.27584277,216.41,216.28,6.42245972]
[1734539515420,2.3117,216.34,216.3,2.312]
[1734539515820,2.3117,216.34,216.29,2.3122]
[1734539516726,2.4,216.36,216.23,6.42245972]
[1734539516926,2.4,216.36,216.23,17.69830249]
[1734539517127,11.27584277,216.35,216.23,17.69830249]
[1734539517328,12.71634277,216.35,216.23,6.42245972]
[1734539517625,3.0593,216.34,216.23,6.42245972]
[1734539517927,3.0593,216.34,216.2,11.27584277]
[1734539518426,2.3123,216.29,216.23,2.3129]
[1734539518723,2.4,216.28,216.2,16.88948045]
[1734539519416,2.4,216.28,216.2,11.27584277]
[1734539519617,2.4,216.28,216.14,6.42245972]
[1734539519818,2.4,216.28,216.16,11.27584277]
[1734539520423,2.3127,216.25,216.2,2.3132]
[1734539520825,2.4,216.28,216.16,11.27584277]
[1734539521134,11.27584277,216.2,216.08,6.42245972]
[1734539521430,7.1088,216.19,216.08,6.42245972]
[1734539521630,2.314,216.14,216.07,2.3145]
[1734539521830,2.4,216.13,216.07,2.3145]
[1734539522531,2.4,216.13,216.02,11.27584277]
[1734539522931,2.3146,216.07,215.99,11.27584277]
[1734539523231,2.4,216.06,215.96,17.69830249]
[1734539523429,2.3149,216.04,215.96,11.27584277]
[1734539523630,4.7149,216.04,215.98,2.3155]
[1734539524131,2.4,216.04,215.91,25.68983889]
[1734539524432,2.4,216.04,215.9,18.11967057]
[1734539524828,2.3153,216.01,215.9,18.11967057]
[1734539525227,2.48,216.0,215.9,18.11967057]
[1734539526036,2.3153,216.01,215.9,18.11967057]
[1734539526328,2.5,216.03,215.91,5.54388893]
[1734539526533,2.5,216.02,215.91,5.54388893]
[1734539526732,2.5,216.02,215.97,2.3157]
[1734539526933,2.5,216.02,215.94,18.11967057]
[1734539527433,2.5,216.04,215.94,18.11967057]
[1734539527634,7.11694907,216.1,215.94,18.11967057]
[1734539527831,2.5,216.09,215.98,18.11967057]
[1734539528633,4.8144,216.09,216.02,2.3151]
[1734539529032,2.5,216.09,215.98,20.61967057]
[1734539529233,2.5,216.09,216.05,2.3148]
[1734539529535,2.5,216.09,215.98,18.11967057]
[1734539529935,2.5,216.09,216.02,2.3151]
[1734539530333,2.5,216.09,215.98,18.11967057]
[1734539530532,4.8144,216.09,216.03,2.315]
[1734539530730,4.8144,216.09,215.98,18.11967057]
[1734539530731,2.5,216.09,215.98,18.11967057]
[1734539530931,2.5,216.08,215.98,18.11967057]
[1734539531131,2.5,216.08,216.01,2.3152]
[1734539531331,2.5,216.08,215.98,18.11967057]
[1734539532235,2.5,216.08,215.94,18.11967057]
[1734539532536,2.5,216.08,215.94,20.61967057]
[1734539533231,4.8145,216.08,216.02,2.3151]
[1734539533836,2.5,216.08,216.03,2.315]
[1734539534431,2.5,216.08,215.94,20.61967057]
[1734539534839,2.5,216.08,216.03,2.315]
[1734539535136,2.5,216.08,215.94,20.61967057]
[1734539535635,2.5,216.08,215.95,0.8511475]
[1734539535838,2.5,216.08,215.94,20.61967057]
[1734539536034,2.5,216.08,215.95,0.85114517]
[1734539536234,2.5,216.08,216.04,2.3149]
[1734539536931,2.5,216.08,215.94,20.61967057]
[1734539537137,2.5,216.08,216.05,2.3148]
[1734539537635,2.5,216.08,215.94,20.61967057]
[1734539537838,7.92132758,216.12,215.98,18.11967057]
[1734539538139,1.5308,216.18,216.06,18.11967057]
[1734539538338,1.5308,216.18,216.13,2.3139]
[1734539538540,1.5308,216.18,216.07,2.5]
[1734539538942,1.5308,216.18,216.1,2.3142]
[1734539539143,1.5308,216.18,216.07,2.5]
[1734539539742,10.91897029,216.19,216.07,2.5]
[1734539540439,2.5,216.23,216.1,18.11967057]
[1734539540645,2.5,216.24,216.1,18.11967057]
[1734539541140,18.11967057,216.3,216.1,18.11967057]
[1734539541446,5.57623498,216.26,216.11,2.5]
[1734539541642,2.5,216.28,216.14,18.11967057]
[1734539542541,8.09456872,216.28,216.14,18.11967057]
[1734539543745,8.09456872,216.28,216.1,18.11967057]
[1734539543942,18.11967057,216.26,216.11,2.5]
[1734539544138,18.11967057,216.26,216.08,5.4806773]
[1734539544340,18.11967057,216.26,216.09,2.5]
[1734539545137,2.3134,216.19,216.14,2.3138]
[1734539545449,2.5,216.2,216.09,2.5]
[1734539545746,2.5,216.21,216.09,2.5]
[1734539545943,2.5,216.23,216.09,2.5]
[1734539546143,3.1325,216.2,216.09,2.5]
[1734539546342,2.3135,216.18,216.13,2.3139]
[1734539546647,2.3135,216.18,216.09,2.5]
[1734539547138,2.3137,216.16,216.04,18.11967057]
[1734539547344,2.5,216.18,216.05,2.5]
[1734539547538,2.5,216.18,216.09,2.3143]
[1734539547947,2.3138,216.15,216.09,2.3143]
[1734539548339,2.3139,216.14,216.09,2.3143]
[1734539548647,20.61967057,216.18,216.02,2.5]
[1734539548844,2.314,216.13,216.02,2.5]
[1734539549246,2.314,216.13,216.02,8.07230475]
[1734539549447,20.61967057,216.18,216.02,8.07230475]
[1734539549647,2.3139,216.14,216.09,2.3143]
[1734539549849,20.61967057,216.18,216.09,2.3143]
[1734539550146,2.3138,216.15,216.02,8.07230475]
[1734539550748,2.3138,216.14,216.09,2.3143]
[1734539552852,2.3138,216.14,216.07,2.3146]
[1734539553053,2.3138,216.14,216.04,11.31515882]
[1734539553445,2.3138,216.14,216.09,2.3143]
[1734539553646,2.3139,216.14,216.09,2.3143]
[1734539554354,5.52554605,216.18,216.07,13.71515882]
[1734539554550,2.4,216.18,216.07,13.71515882]
[1734539554754,2.4,216.18,216.17,2.3135]
[1734539554950,3.8237,216.22,216.13,11.31515882]
[1734539555154,2.4,216.24,216.13,13.71515882]
[1734539555362,2.4,216.24,216.23,2.3129]
[1734539555662,2.3125,216.27,216.23,2.3129]
[1734539555857,2.3123,216.29,216.25,2.3126]
[1734539556253,2.4,216.3,216.18,2.4]
[1734539556458,2.3125,216.27,216.23,2.3128]
[1734539556658,5.51498733,216.29,216.18,2.4]
[1734539557159,7.82728733,216.29,216.24,2.3127]
[1734539557358,2.4,216.31,216.18,2.4]
[1734539557864,7.85638378,216.31,216.26,2.3125]
[1734539558661,7.85638378,216.31,216.18,2.4]
[1734539558662,2.3122,216.3,216.25,2.3127]
[1734539558961,7.85638378,216.31,216.17,18.0793709]
[1734539559157,2.3124,216.28,216.24,2.3128]
[1734539559666,7.85638378,216.31,216.18,2.4]
[1734539560065,3.0122,216.32,216.18,2.4]
[1734539560663,2.3121,216.31,216.18,2.4]
[1734539560965,3.0122,216.32,216.17,18.0793709]
[1734539561164,2.3123,216.29,216.18,2.4]
[1734539562071,2.3123,216.29,216.25,2.3126]
[1734539562366,3.0122,216.32,216.18,2.4]
[1734539562761,2.3122,216.29,216.22,2.313]
[1734539562960,3.0122,216.32,216.22,2.313]
[1734539563359,2.3129,216.24,216.2,2.3131]
[1734539563567,2.4,216.27,216.16,2.4]
[1734539563863,2.3131,216.21,216.13,26.11626412]
[1734539564269,2.3131,216.21,216.13,20.4793709]
[1734539564458,2.3131,216.21,216.17,2.3135]
[1734539564665,2.3131,216.22,216.13,20.4793709]
[1734539564967,2.4,216.24,216.13,20.4793709]
[1734539566070,2.4,216.24,216.13,18.0793709]
[1734539566270,2.4,216.24,216.11,2.4]
[1734539566467,2.4,216.24,216.09,18.0793709]
[1734539566468,1.5213,216.23,216.1,2.4]
[1734539566665,1.5213,216.23,216.09,20.4793709]
[1734539566863,2.3134,216.19,216.14,2.3137]
[1734539567767,2.9783,216.22,216.09,20.4793709]
[1734539567768,2.4,216.18,216.09,18.0793709]
[1734539567967,2.4,216.18,216.06,2.4]
[1734539568167,2.3141,216.12,216.08,2.3144]
[1734539568764,2.4,216.13,216.04,18.0793709]
[1734539569071,2.4,216.13,216.0,6.42245972]
[1734539569372,4.5255,216.12,215.98,25.81304062]
[1734539569670,4.5255,216.12,216.02,2.3151]
[1734539569872,4.5255,216.12,215.98,25.81304062]
[1734539570268,4.5255,216.12,215.98,19.3905809]
[1734539570468,4.5255,216.12,215.98,24.84985536]
[1734539571472,2.3145,216.09,216.03,2.3149]
[1734539571671,2.3145,216.09,215.98,24.84985536]
[1734539572374,5.3878,216.12,216.02,18.0793709]
[1734539572564,4.6255,216.25,216.02,18.0793709]
[1734539572565,5.4287043,216.15,216.03,2.4]
[1734539572766,2.4,216.17,216.06,18.0793709]
[1734539573166,4.3926,216.24,216.1,18.0793709]
[1734539573367,2.4,216.21,216.1,20.4793709]
[1734539574172,8.04921056,216.21,216.1,20.4793709]
[1734539574369,2.4,216.21,216.1,20.4793709]
[1734539574978,2.4,216.21,216.17,2.3135]
[1734539575580,4.7131,216.21,216.17,2.3135]
[1734539576179,2.4,216.21,216.18,2.3133]
[1734539576375,2.4,216.21,216.1,20.4793709]
[1734539576580,2.4,216.21,216.17,2.3135]
[1734539576981,2.4,216.21,216.1,20.4793709]
[1734539577172,2.4,216.21,216.06,20.4793709]
[1734539577579,2.3133,216.19,216.15,2.3137]
[1734539577779,4.7133,216.19,216.15,2.3137]
[1734539579076,4.7133,216.19,216.14,2.3138]
[1734539579482,4.7133,216.19,216.06,20.4793709]
[1734539579686,4.7133,216.19,216.14,2.3138]
[1734539580184,2.3135,216.18,216.14,2.3138]
[1734539580581,2.3136,216.17,216.12,2.314]
[1734539581281,2.3137,216.15,216.11,2.3142]
[1734539582178,2.3136,216.16,216.12,2.314]
[1734539582381,2.4,216.19,216.07,11.31284303]
[1734539582774,2.4,216.19,216.1,11.31284303]
[1734539583482,2.4,216.18,216.14,2.3137]
[1734539583782,2.4,216.18,216.1,11.31284303]
[1734539584183,2.3137,216.16,216.12,2.314]
[1734539584883,2.3138,216.15,216.1,2.3142]
[1734539585082,2.3138,216.15,216.07,11.31284303]
[1734539585083,2.4,216.18,216.07,11.31284303]
[1734539585284,2.3141,216.12,216.04,13.71284303]
[1734539585485,2.4,216.13,216.04,11.31284303]
[1734539585976,2.3142,216.11,216.04,2.3149]
[1734539586180,3.0571,216.12,216.01,11.31284303]
[1734539587479,2.3144,216.09,216.05,2.3147]
[1734539588480,2.4,216.13,216.03,18.11023334]
[1734539589185,2.4,216.13,216.1,2.3142]
[1734539590281,4.714,216.13,216.1,2.3142]
[1734539591079,2.4,216.13,216.11,2.3141]
[1734539591785,2.4,216.13,216.03,18.11023334]
[1734539592285,2.3146,216.08,216.03,2.3149]
[1734539592487,2.4,216.08,215.99,18.11023334]
[1734539592984,5.4189,216.12,215.99,18.11023334]
[1734539593179,2.4,216.12,215.99,18.11023334]
[1734539593375,2.4,216.12,216.11,2.3142]
[1734539593788,2.4,216.12,216.03,18.11023334]
[1734539594085,2.4,216.12,216.09,2.3143]
[1734539594281,2.4,216.12,216.03,18.11023334]
[1734539594481,2.4,216.15,216.03,18.11023334]
[1734539594785,2.4,216.16,216.03,18.11023334]
[1734539594985,5.3323,216.19,216.14,2.3138]
[1734539595187,2.4,216.18,216.14,2.3138]
[1734539595581,2.4,216.18,216.11,18.11023334]
[1734539595780,5.65875269,216.24,216.12,2.4]
[1734539595987,2.4,216.23,216.12,2.4]
[1734539596186,4.7173,216.28,216.12,2.4]
[1734539596187,2.4,216.26,216.15,18.11023334]
[1734539598982,2.3127,216.25,216.15,18.11023334]
[1734539599386,3.1285,216.28,216.15,18.11023334]
[1734539599687,3.1285,216.28,216.24,2.3127]
[1734539600291,2.4,216.29,216.26,2.3125]
[1734539600484,2.4,216.29,216.19,18.11023334]
[1734539600684,2.4,216.31,216.19,18.11023334]
[1734539600894,2.4,216.31,216.27,2.3124]
[1734539602190,2.4,216.31,216.19,18.11023334]
[1734539602385,2.4,216.31,216.15,18.11023334]
[1734539602792,2.3127,216.25,216.15,18.11023334]
[1734539602992,2.4,216.24,216.15,18.11023334]
[1734539603186,2.4,216.24,216.2,2.3131]
[1734539604290,4.7128,216.24,216.2,2.3131]
[1734539604491,2.4,216.24,216.2,2.3134]
[1734539604888,2.4,216.24,216.15,0.90613]
[1734539605094,2.4,216.24,216.16,2.3138]
[1734539605396,2.3133,216.21,216.15,0.90613]
[1734539605591,2.4,216.24,216.18,2.3136]
[1734539605993,2.4,216.24,216.15,0.90613]
[1734539606189,2.3133,216.22,216.15,0.90613]
[1734539606397,2.4,216.24,216.15,0.90613]
[1734539606798,2.3132,216.23,216.15,0.90613]
[1734539606998,2.3132,216.23,216.18,2.3135]
[1734539607197,2.3132,216.23,216.15,0.90613]
[1734539607198,2.3131,216.21,216.15,0.90613]
[1734539607401,2.4,216.24,216.15,0.90613]
[1734539608500,2.3132,216.2,216.16,2.3136]
[1734539609600,4.7129,216.24,216.19,2.3133]
[1734539610102,2.3124,216.28,216.24,2.3127]
[1734539610401,2.4,216.29,216.19,18.11023334]
[1734539610595,2.4,216.32,216.23,18.11023334]
[1734539610790,2.3117,216.34,216.23,18.11023334]
[1734539610992,2.4,216.33,216.23,18.11023334]
[1734539611598,2.4,216.33,216.22,18.11023334]
[1734539611803,7.96790146,216.35,216.22,18.11023334]
[1734539612004,2.3118,216.33,216.25,2.3126]
[1734539612301,2.3118,216.33,216.22,18.11023334]
[1734539612700,2.3119,216.32,216.22,18.11023334]
[1734539612902,2.4,216.34,216.22,18.11023334]
[1734539613097,2.4,216.34,216.25,2.3126]
[1734539613303,2.3121,216.31,216.21,2.4]
[1734539613802,5.56790146,216.35,216.22,18.11023334]
[1734539613997,2.4,216.39,216.26,18.11023334]
[1734539614306,2.3116,216.35,216.29,2.3122]
[1734539614504,2.3116,216.35,216.26,20.51023334]
[1734539614906,2.3115,216.36,216.32,2.3119]
[1734539615204,2.3115,216.36,216.26,20.51023334]
[1734539615504,8.07282395,216.37,216.26,20.51023334]
[1734539615710,18.11023334,216.45,216.26,20.51023334]
[1734539616009,5.51351702,216.42,216.3,18.11023334]
[1734539616202,5.51351702,216.42,216.31,2.4]
[1734539616602,2.4,216.45,216.31,2.4]
[1734539616809,2.311,216.42,216.31,2.4]
[1734539617004,2.4,216.45,216.31,2.4]
[1734539617801,16.84001222,216.5,216.36,2.3114]
[1734539618000,19.70503334,216.51,216.34,18.11023334]
[1734539618202,2.3106,216.45,216.39,2.3111]
[1734539618501,2.4,216.45,216.34,18.11023334]
[1734539619010,2.4,216.45,216.3,18.11023334]
[1734539619305,2.9624,216.44,216.31,2.4]
[1734539619607,19.70503334,216.51,216.34,18.11023334]
[1734539619806,2.4,216.48,216.34,18.11023334]
[1734539620809,2.3103,216.47,216.41,2.3109]
[1734539621207,2.3103,216.47,216.38,2.4]
[1734539621606,8.0227331,216.48,216.34,18.11023334]
[1734539621901,2.9111,216.46,216.35,2.4]
[1734539622308,8.0227331,216.48,216.35,2.4]
[1734539622908,5.6227331,216.48,216.35,2.4]
[1734539623312,2.3103,216.47,216.43,2.3107]
[1734539624802,5.6227331,216.48,216.36,18.11023334]
[1734539625007,6.9219,216.5,216.36,18.11023334]
[1734539625202,2.4,216.5,216.4,18.11023334]
[1734539625405,2.4,216.53,216.41,2.4]
[1734539625605,2.4,216.53,216.44,18.11023334]
[1734539625809,4.7093,216.57,216.44,18.11023334]
[1734539626205,2.4,216.57,216.44,20.51023334]
[1734539626605,2.3097,216.53,216.44,20.51023334]
[1734539626812,2.3097,216.53,216.49,2.3101]
[1734539627015,5.42414893,216.56,216.44,20.51023334]
[1734539628115,2.4,216.57,216.48,18.11023334]
[1734539628313,4.5069,216.59,216.49,2.4]
[1734539628917,6.8159,216.59,216.55,2.3095]
[1734539629113,4.5069,216.59,216.55,2.3095]
[1734539629412,4.5069,216.59,216.49,2.4]
[1734539629615,4.5069,216.59,216.48,18.11023334]
[1734539629916,4.5069,216.59,216.46,2.4]
[1734539630113,2.3096,216.55,216.5,2.3099]
[1734539630517,2.3096,216.55,216.45,2.4]
[1734539631016,4.5069,216.59,216.45,2.4]
[1734539632011,2.3095,216.55,216.49,2.3101]
[1734539632217,2.3095,216.55,216.44,23.65692711]
[1734539632422,2.4,216.54,216.33,7.92347606]
[1734539632621,2.4,216.53,216.36,18.11023334]
[1734539633318,2.3108,216.43,216.38,2.3112]
[1734539633523,2.4,216.45,216.36,18.11023334]
[1734539634518,2.3107,216.44,216.39,2.3111]
[1734539634820,2.4,216.45,216.33,23.6337094]
[1734539635022,2.3109,216.42,216.37,2.3113]
[1734539635615,2.3108,216.43,216.38,2.3112]
[1734539636324,2.4,216.45,216.33,23.6337094]
[1734539636524,3.0328,216.44,216.29,18.11023334]
[1734539636824,4.6181,216.44,216.29,18.11023334]
[1734539637324,4.6181,216.44,216.33,2.3118]
[1734539637925,4.6181,216.44,216.29,18.48720334]
[1734539637926,2.3113,216.39,216.34,2.3117]
[1734539638225,4.7113,216.39,216.34,2.3117]
[1734539639216,4.6181,216.44,216.33,18.11023334]
[1734539639423,3.0328,216.44,216.33,18.11023334]
[1734539639931,5.3435,216.44,216.33,18.11023334]
[1734539640325,2.3107,216.44,216.33,18.11023334]
[1734539641030,2.4,216.45,216.33,18.11023334]
[1734539641223,5.61777358,216.49,216.33,18.11023334]
[1734539641424,2.4,216.48,216.37,18.11023334]
[1734539641628,2.3103,216.47,216.4,2.311]
[1734539641929,2.4,216.48,216.37,18.11023334]
[1734539642431,2.4,216.48,216.33,18.11023334]
[1734539642828,2.3108,216.43,216.37,2.3113]
[1734539643025,2.3108,216.43,216.33,18.11023334]
[1734539643523,4.7102,216.48,216.43,2.3107]
[1734539643722,2.4,216.48,216.33,18.11023334]
[1734539643931,2.3106,216.45,216.37,2.3113]
[1734539644131,2.4,216.48,216.33,18.11023334]
[1734539645227,2.4,216.48,216.42,2.3108]
[1734539645732,2.3104,216.46,216.42,2.3108]
[1734539645928,5.61777358,216.49,216.33,18.11023334]
[1734539646229,5.61777358,216.49,216.37,18.11023334]
[1734539646230,4.7101,216.49,216.37,18.11023334]
[1734539646434,4.7101,216.49,216.38,2.4]
[1734539646633,1.4507,216.5,216.41,18.11023334]
[1734539646834,2.4,216.53,216.41,18.11023334]
[1734539647035,52.86,216.55,216.45,2.3104]
[1734539647235,2.4,216.54,216.41,18.11023334]
[1734539647533,2.3102,216.48,216.41,18.11023334]
[1734539647730,2.4,216.54,216.41,18.11023334]
[1734539648036,2.3105,216.46,216.38,2.4]
[1734539648235,2.4,216.48,216.43,2.3107]
[1734539648532,2.4,216.48,216.38,2.4]
[1734539648835,2.3104,216.47,216.42,2.3108]
[1734539649232,2.4,216.48,216.37,18.11023334]
[1734539649536,2.4,216.48,216.35,2.4]
[1734539649836,4.5146,216.47,216.34,25.62197276]
[1734539650435,3.0167,216.47,216.37,18.11023334]
[1734539650629,2.3103,216.48,216.44,2.3105]
[1734539651541,2.4,216.52,216.38,2.4]
[1734539652042,2.4,216.52,216.4,11.27832472]
[1734539652234,15.79292472,216.54,216.4,11.27832472]
[1734539652538,2.4,216.53,216.43,11.27832472]
[1734539652734,2.4,216.53,216.43,13.67832472]
[1734539652940,4.7098,216.53,216.48,2.3102]
[1734539653338,2.3098,216.53,216.48,2.3102]
[1734539653734,2.3098,216.53,216.43,13.67832472]
[1734539654140,2.3098,216.53,216.48,2.3101]
[1734539654340,3.0167,216.54,216.48,2.3101]
[1734539654533,3.0167,216.54,216.43,13.67832472]
[1734539654732,3.0167,216.54,216.48,2.3103]
[1734539654939,3.0167,216.54,216.43,13.67832472]
[1734539655141,5.3266,216.54,216.49,2.3102]
[1734539655344,2.4,216.55,216.46,11.27832472]
[1734539655640,2.4,216.57,216.49,2.3102]
[1734539656142,2.4,216.57,216.48,2.3104]
[1734539656335,2.4,216.57,216.43,2.4]
[1734539657037,2.3101,216.52,216.48,2.3104]
[1734539657642,2.3101,216.51,216.47,2.3105]
[1734539657842,2.4,216.57,216.47,2.3105]
[1734539658040,1.5524,216.56,216.38,25.62197276]
[1734539658241,2.3104,216.49,216.44,2.3108]
[1734539658442,2.3104,216.49,216.41,5.50474732]
[1734539659740,2.4,216.51,216.37,18.03836846]
[1734539660340,2.3105,216.47,216.37,18.03836846]
[1734539660546,2.4,216.51,216.39,5.66970761]
[1734539660740,2.3105,216.47,216.42,2.3109]
[1734539661046,2.4,216.51,216.39,5.66970761]
[1734539661244,2.4,216.51,216.37,18.03836846]
[1734539661545,18.03836846,216.5,216.33,18.03836846]
[1734539661745,18.03836846,216.46,216.32,6.40549319]
[1734539661945,6.7966,216.45,216.32,6.40549319]
[1734539662337,6.7966,216.45,216.29,5.87577626]
[1734539663247,18.03836846,216.42,216.29,0.37697]
[1734539663450,2.3121,216.32,216.29,0.37697]
[1734539663746,2.4,216.35,216.29,0.37697]
[1734539663949,2.4,216.35,216.31,2.3122]
[1734539665150,18.03836846,216.42,216.29,0.37697]
[1734539665446,7.98565224,216.41,216.29,2.77697]
[1734539665647,7.98565224,216.41,216.29,0.37697]
[1734539667253,2.3117,216.36,216.29,0.37697]
[1734539667446,4.7117,216.36,216.29,0.37697]
[1734539667643,2.4,216.41,216.3,2.4]
[1734539667850,6.7966,216.45,216.33,18.03836846]
[1734539668455,5.63455484,216.44,216.33,18.03836846]
[1734539668649,5.63455484,216.44,216.3,2.4]
[1734539669457,2.3113,216.4,216.35,2.3118]
[1734539669650,2.4,216.4,216.35,2.3118]
[1734539670459,2.3114,216.39,216.35,2.3118]
[1734539671061,2.4,216.4,216.3,2.4]
[1734539671252,2.4,216.43,216.3,2.4]
[1734539672158,2.3112,216.41,216.36,2.3116]
[1734539672351,2.3112,216.41,216.3,2.4]
[1734539672553,2.4,216.43,216.3,2.4]
[1734539672755,2.4,216.43,216.39,2.3114]
[1734539673059,2.9437,216.45,216.35,2.4]
[1734539673261,2.4,216.47,216.44,2.3108]
[1734539673460,2.4,216.47,216.37,18.03836846]
[1734539673660,4.4855,216.57,216.37,18.03836846]
[1734539673862,4.4855,216.57,216.47,2.3104]
[1734539674063,2.4,216.56,216.41,20.43836846]
[1734539674362,2.3102,216.51,216.44,2.3108]
[1734539674663,2.4,216.51,216.41,20.43836846]
[1734539675053,2.3103,216.49,216.44,2.3107]
[1734539675462,2.4,216.51,216.44,2.3107]
[1734539675763,2.3106,216.47,216.42,2.311]
[1734539676859,2.3109,216.44,216.33,18.03836846]
[1734539677059,2.4,216.45,216.33,20.43836846]
[1734539678064,2.4,216.45,216.39,2.3113]
[1734539678563,2.311,216.43,216.39,2.3113]
[1734539678861,2.4,216.45,216.33,20.43836846]
[1734539679057,2.3112,216.41,216.37,2.3115]
[1734539680160,2.3111,216.42,216.38,2.3115]
[1734539681258,3.0912,216.44,216.33,20.43836846]
[1734539681866,5.4021,216.44,216.4,2.3112]
[1734539682667,5.6838422,216.53,216.41,18.03836846]
[1734539682964,4.7101,216.51,216.48,2.3104]
[1734539683163,3.0996,216.55,216.41,18.03836846]
[1734539683364,2.4,216.54,216.41,18.03836846]
[1734539683564,4.7099,216.54,216.41,18.03836846]
[1734539684567,2.4,216.54,216.49,2.3102]
[1734539684765,2.4,216.54,216.41,18.03836846]
[1734539684961,2.4,216.54,216.4,2.4]
[1734539685170,2.3103,216.49,216.4,2.4]
[1734539685369,2.4,216.54,216.4,2.4]
[1734539685568,2.3103,216.5,216.4,2.4]